bitfinex-derivatives/quotes_BTCF0:USTF0_20251220
["timestamp","ask_amount","ask_price","bid_price","bid_amount"]
[1766189790369,0.00017006,88193.0,88176.0,0.22654951]
[1766189790370,0.0044,88192.0,88176.0,0.22654951]
[1766189790571,0.00017006,88193.0,88180.0,0.22654951]
[1766189790765,0.00017006,88193.0,88177.0,0.0113481]
[1766189790766,0.01151626,88193.0,88172.0,0.00568]
[1766189793074,0.00017006,88193.0,88173.0,0.0113486]
[1766189793576,0.00017006,88193.0,88172.0,0.00568]
[1766189793775,0.22654951,88190.0,88172.0,0.00568]
[1766189793975,0.01151626,88193.0,88172.0,0.00568]
[1766189794177,0.22654951,88190.0,88172.0,0.00568]
[1766189795070,0.01151626,88193.0,88172.0,0.00568]
[1766189795764,0.0113466,88190.0,88172.0,0.00568]
[1766189795966,0.22654951,88190.0,88172.0,0.00568]
[1766189796278,0.0113472,88185.0,88172.0,0.00568]
[1766189797073,0.00568,88186.0,88172.0,0.00568]
[1766189797972,0.017027,88186.0,88172.0,0.00568]
[1766189801077,0.017027,88186.0,88167.0,0.00284]
[1766189809587,0.0113491,88170.0,88158.0,0.06155666]
[1766189809893,0.0113491,88170.0,88145.0,0.00568]
[1766189809894,0.0113498,88165.0,88145.0,0.00568]
[1766189810085,0.00568,88169.0,88145.0,0.00568]
[1766189810291,0.0113495,88167.0,88145.0,0.00568]
[1766189810979,0.00017009,88165.0,88148.0,0.0113518]
[1766189811992,0.00017009,88165.0,88147.0,0.00017009]
[1766189812194,0.01151989,88165.0,88147.0,0.00017009]
[1766189815702,0.0113501,88162.0,88147.0,0.00017009]
[1766189816405,0.00017009,88165.0,88147.0,0.00017009]
[1766189816901,0.0113499,88164.0,88147.0,0.00017009]
[1766189818998,0.00017009,88165.0,88147.0,0.00017009]
[1766189819396,0.0113503,88161.0,88147.0,0.00017009]
[1766189819605,0.0170303,88161.0,88147.0,0.00017009]
[1766189820105,0.00568,88161.0,88147.0,0.00017009]
[1766189820804,0.2267,88190.0,88154.0,0.0113511]
[1766189821007,1.48010529,88189.0,88159.0,0.2267]
[1766189821212,0.2267,88180.0,88159.0,0.2267]
[1766189821395,0.00568,88179.0,88159.0,0.2267]
[1766189822010,0.00017009,88178.0,88160.0,0.00017009]
[1766189822310,0.0113484,88175.0,88160.0,0.22687009]
[1766189823319,0.00017009,88178.0,88160.0,0.22687009]
[1766189823607,0.0113482,88177.0,88160.0,0.22687009]
[1766189824302,0.00017009,88178.0,88160.0,0.22687009]
[1766189824509,0.00568,88176.0,88160.0,0.22687009]
[1766189826708,0.00568,88176.0,88160.0,0.23255009]
[1766189826908,0.00017009,88178.0,88163.0,0.0113499]
[1766189827208,0.00017009,88178.0,88160.0,0.23255009]
[1766189827610,0.00017009,88178.0,88160.0,0.00585009]
[1766189827909,0.00017009,88178.0,88160.0,0.23255009]
[1766189828110,0.00017009,88178.0,88161.0,0.0113502]
[1766189828914,0.0113455,88198.0,88160.0,0.00585009]
[1766189829101,0.0113458,88196.0,88170.0,0.2267]
[1766189829303,0.011346,88194.0,88171.0,0.0170289]
[1766189829808,0.00017006,88191.0,88174.0,0.00017009]
[1766189830600,0.01151646,88191.0,88174.0,0.00017009]
[1766189831915,0.00017006,88191.0,88174.0,0.01151859]
[1766189832102,0.00017006,88191.0,88180.0,0.2267]
[1766189832613,0.0113443,88207.0,88181.0,0.0113476]
[1766189832818,1.4472,88217.0,88190.0,0.2380464]
[1766189833110,0.0113437,88212.0,88190.0,0.2437264]
[1766189833612,0.0113437,88212.0,88192.0,0.00017009]
[1766189837515,0.0113434,88215.0,88192.0,0.00017009]
[1766189838928,0.0113437,88212.0,88192.0,0.00017009]
[1766189839407,0.00568,88216.0,88192.0,0.00017009]
[1766189839606,0.2267,88210.0,88192.0,0.00017009]
[1766189839815,0.0113443,88208.0,88192.0,0.00017009]
[1766189840402,0.0113446,88205.0,88190.0,0.00568]
[1766189840609,0.0113448,88204.0,88190.0,9e-08]
[1766189840804,0.2267,88210.0,88190.0,9e-08]
[1766189840805,0.2267,88200.0,88190.0,9e-08]
[1766189841006,0.0113449,88202.0,88187.0,0.00568]
[1766189841520,0.0113449,88202.0,88187.0,0.00564]
[1766189842322,0.2267,88200.0,88187.0,0.00564]
[1766189842620,0.2267,88200.0,88186.0,0.00017009]
[1766189844614,0.0113453,88199.0,88186.0,0.00017009]
[1766189844805,0.00585009,88203.0,88160.0,0.08149931]
[1766189844806,0.2267,88196.0,88160.0,0.08149931]
[1766189845010,0.0113467,88189.0,88165.0,0.0113497]
[1766189845313,0.0113449,88203.0,88179.0,0.2267]
[1766189845510,0.00568,88202.0,88179.0,0.2380479]
[1766189845705,0.00017009,88199.0,88182.0,0.00017009]
[1766189846513,0.0113455,88198.0,88182.0,0.00017009]
[1766189846713,0.00568,88197.0,88182.0,0.00017009]
[1766189847211,0.00568,88197.0,88182.0,9e-08]
[1766189847212,0.0113466,88190.0,88182.0,9e-08]
[1766189847722,0.00568,88191.0,88182.0,9e-08]
[1766189853322,0.0170265,88191.0,88182.0,9e-08]
[1766189856214,0.0113468,88188.0,88182.0,9e-08]
[1766189860932,0.00568,88191.0,88182.0,9e-08]
[1766189863035,0.0113465,88190.0,88182.0,9e-08]
[1766189867730,0.00568,88191.0,88182.0,9e-08]
[1766189868932,0.0113473,88184.0,88182.0,9e-08]
[1766189869132,0.00568,88183.0,88182.0,9e-08]
[1766189881844,0.0113463,88192.0,88182.0,9e-08]
[1766189882052,0.0113465,88190.0,88182.0,9e-08]
[1766189882242,0.00564,88189.0,88182.0,9e-08]
[1766189886754,0.011346,88194.0,88182.0,9e-08]
[1766189887152,0.00568,88193.0,88182.0,9e-08]
[1766189889461,0.0113462,88192.0,88182.0,9e-08]
[1766189893271,0.0113467,88189.0,88182.0,9e-08]
[1766189893570,0.00568,88188.0,88182.0,9e-08]
[1766189893765,0.00568,88188.0,88162.0,0.00076]
[1766189893967,0.0113488,88172.0,88146.0,0.10192096]
[1766189894168,0.22658874,88180.0,88147.0,0.00568]
[1766189894169,0.01135,88163.0,88147.0,0.00568]
[1766189894362,0.00356,88166.0,88136.0,1.447]
[1766189894565,0.0113507,88158.0,88137.0,0.0170332]
[1766189894765,0.00017009,88156.0,88139.0,0.00017009]
[1766189895073,0.00017009,88156.0,88140.0,0.0113529]
[1766189895258,0.00017009,88156.0,88144.0,0.0113524]
[1766189900077,9e-08,88156.0,88140.0,0.22658874]
[1766189901181,9e-08,88156.0,88144.0,0.0113523]
[1766189901987,9e-08,88156.0,88139.0,0.00017009]
[1766189902284,0.0113514,88152.0,88139.0,0.00017009]
[1766189902877,0.01135099,88156.0,88139.0,0.00017009]
[1766189905284,0.0113504,88160.0,88139.0,0.00017009]
[1766189905583,0.0113104,88160.0,88139.0,0.00017009]
[1766189906281,0.00017009,88158.0,88139.0,0.00017009]
[1766189907078,0.0113508,88157.0,88139.0,0.00017009]
[1766189907279,0.00017009,88158.0,88139.0,0.00017009]
[1766189908181,0.0113512,88154.0,88139.0,0.00017009]
[1766189909386,0.0113512,88154.0,88140.0,0.22673599]
[1766189910681,0.0113512,88154.0,88139.0,0.00017009]
[1766189911884,0.00017009,88158.0,88139.0,0.00017009]
[1766189911885,0.01152079,88158.0,88139.0,0.00017009]
[1766189917700,0.01152079,88158.0,88139.0,0.00013009]
[1766189918188,0.0113516,88151.0,88139.0,0.00013009]
[1766189918599,0.0113519,88148.0,88139.0,9e-08]
[1766189920196,0.0113514,88152.0,88139.0,9e-08]
[1766189925387,0.22673599,88150.0,88139.0,9e-08]
[1766189925587,0.22673599,88150.0,88114.0,0.0113562]
[1766189925588,0.0113535,88136.0,88114.0,0.0113562]
[1766189925799,0.0113534,88137.0,88115.0,0.00568]
[1766189925998,0.0113537,88134.0,88120.0,0.22673599]
[1766189926406,0.0170332,88138.0,88120.0,0.22673599]
[1766189926807,0.01720339,88138.0,88120.0,0.00017019]
[1766189927106,0.01720339,88138.0,88120.0,0.22690618]
[1766189929202,0.01720339,88138.0,88120.0,0.00017019]
[1766189929203,0.00585019,88138.0,88120.0,0.00017019]
[1766189929407,0.00585019,88138.0,88120.0,0.22690618]
[1766189930418,0.0113534,88137.0,88120.0,0.22690618]
[1766189931597,0.00585019,88138.0,88121.0,0.00568]
[1766189931798,0.00585019,88138.0,88120.0,0.00017019]
[1766189932108,0.0113536,88135.0,88112.0,0.00010484]
[1766189932411,0.0113537,88135.0,88120.0,0.22673599]
[1766189932801,0.0113537,88135.0,88114.0,0.0113562]
[1766189933116,0.00585019,88138.0,88116.0,0.00017019]
[1766189934315,0.0113539,88133.0,88116.0,0.00017019]
[1766189936606,0.0113543,88130.0,88116.0,0.00017019]
[1766189939117,0.0113546,88127.0,88116.0,0.00017019]
[1766189940605,0.22673599,88130.0,88116.0,0.00017019]
[1766189940808,0.0170342,88131.0,88116.0,0.00017019]
[1766189941605,0.00568,88131.0,88116.0,0.00017019]
[1766189942523,0.22673599,88130.0,88116.0,0.00017019]
[1766189942708,0.00568,88131.0,88116.0,0.00017019]
[1766189942911,0.00568,88130.0,88120.0,0.22673599]
[1766189943110,0.01152339,88138.0,88116.0,0.00017019]
[1766189943111,0.00568,88131.0,88116.0,0.00017019]
[1766189945117,0.00568,88131.0,88120.0,0.22673599]
[1766189948625,0.00568,88131.0,88120.0,0.22684198]
[1766189951621,0.00568,88131.0,88118.0,0.00568]
[1766189951821,0.00568,88131.0,88120.0,0.22684198]
[1766189952018,0.00017019,88138.0,88120.0,0.22684198]
[1766189952230,0.00568,88137.0,88120.0,0.22684198]
[1766189953914,0.00568,88137.0,88127.0,0.22684198]
[1766189954320,0.00568,88137.0,88124.0,0.0170349]
[1766189954920,0.00017019,88138.0,88124.0,0.0170349]
[1766189955223,0.00017019,88138.0,88124.0,0.00568]
[1766189957321,1.9e-07,88138.0,88128.0,0.23819628]
[1766189957526,0.00148,88153.0,88130.0,0.0113541]
[1766189957714,0.02757731,88152.0,88131.0,0.00568]
[1766189958024,0.00148,88153.0,88131.0,0.00568]
[1766189958224,0.0275775,88152.0,88131.0,0.00568]
[1766189958524,0.00148,88153.0,88131.0,0.00568]
[1766189958721,0.00017019,88151.0,88133.0,0.00017019]
[1766189959222,0.00017019,88151.0,88134.0,0.0113536]
[1766189963018,0.00017019,88151.0,88133.0,0.00017019]
[1766189963019,0.00017019,88151.0,88140.0,0.22684198]
[1766189963327,0.00568,88156.0,88139.0,0.00568]
[1766189963512,0.00568,88156.0,88140.0,0.22684198]
[1766189965030,0.00568,88156.0,88141.0,0.0113528]
[1766189965224,0.00568,88156.0,88145.0,0.0113522]
[1766189965424,0.00568,88156.0,88141.0,0.0113527]
[1766189965827,0.00568,88156.0,88140.0,0.22684198]
[1766189969432,0.00568,88156.0,88139.0,0.00568]
[1766189969621,0.00568,88156.0,88140.0,0.0113528]
[1766189970635,0.00568,88156.0,88139.0,0.00568]
[1766189971627,0.011351,88155.0,88139.0,0.00568]
[1766189973836,0.00568,88156.0,88139.0,0.00568]
[1766189974642,0.0170309,88156.0,88139.0,0.00568]
[1766189974835,0.0113513,88153.0,88139.0,0.00568]
[1766189975031,0.00568,88156.0,88140.0,0.00568]
[1766189975542,0.0113514,88152.0,88140.0,0.00568]
[1766189975727,0.0113518,88149.0,88140.0,0.00568]
[1766189980243,0.0113513,88153.0,88140.0,0.00568]
[1766189980443,0.0113517,88150.0,88136.0,0.00432]
[1766189981142,0.00568,88156.0,88133.0,0.00017019]
[1766189981344,0.02745135,88155.0,88133.0,0.00017019]
[1766189981641,0.00568,88156.0,88133.0,0.00017019]
[1766189981840,0.0113512,88154.0,88133.0,0.00017019]
[1766189983334,0.0113512,88154.0,88134.0,0.0113536]
[1766189984433,0.0113512,88154.0,88133.0,0.00017019]
[1766189984638,0.00568,88156.0,88133.0,0.00017019]
[1766189984639,0.0113515,88151.0,88133.0,0.00017019]
[1766189985236,0.00568,88156.0,88133.0,0.00017019]
[1766189985237,0.22672412,88150.0,88133.0,0.00017019]
[1766189985440,0.00564,88149.0,88133.0,1.9e-07]
[1766189986252,0.0113534,88137.0,88133.0,1.9e-07]
[1766189987037,0.0170328,88141.0,88133.0,1.9e-07]
[1766189990247,0.0113533,88138.0,88133.0,1.9e-07]
[1766189990749,0.0113536,88135.0,88133.0,1.9e-07]
[1766189990950,0.0170336,88135.0,88133.0,1.9e-07]
[1766189991145,0.0170336,88135.0,88111.0,0.08167826]
[1766189991146,0.0113554,88121.0,88111.0,0.08167826]
[1766189991347,0.0113549,88125.0,88111.0,0.00568]
[1766189992448,0.0113553,88122.0,88110.0,0.00017019]
[1766189993354,0.00568,88124.0,88110.0,0.00017019]
[1766189995053,0.00436,88125.0,88110.0,0.23825101]
[1766189995452,0.00436,88125.0,88113.0,0.0113564]
[1766189996649,1.9e-07,88127.0,88116.0,0.011356]
[1766189996855,1.9e-07,88128.0,88116.0,0.011356]
[1766190000646,0.00017019,88131.0,88116.0,0.011356]
[1766190001656,0.0113523,88146.0,88111.0,0.00568]
[1766190001859,0.0113525,88143.0,88121.0,0.0113553]
[1766190002051,0.0113525,88143.0,88122.0,0.00568]
[1766190002756,0.00017019,88141.0,88124.0,0.00017019]
[1766190004455,0.011353,88140.0,88124.0,0.00017019]
[1766190004655,0.011353,88140.0,88124.0,1.9e-07]
[1766190004656,0.22672412,88140.0,88124.0,1.9e-07]
[1766190007176,0.0113542,88130.0,88124.0,1.9e-07]
[1766190007768,0.00568,88131.0,88124.0,1.9e-07]
[1766190015080,0.0170341,88131.0,88124.0,1.9e-07]
[1766190018085,0.00568,88131.0,88124.0,1.9e-07]
[1766190018280,0.0170341,88131.0,88124.0,1.9e-07]
[1766190019583,0.0113545,88128.0,88124.0,1.9e-07]
[1766190024278,0.0113547,88126.0,88124.0,1.9e-07]
[1766190025090,0.00568,88127.0,88124.0,1.9e-07]
[1766190025887,0.0113537,88135.0,88124.0,1.9e-07]
[1766190026078,0.00017019,88141.0,88124.0,1.9e-07]
[1766190026278,0.00017019,88141.0,88125.0,0.0113548]
[1766190026279,0.02888744,88140.0,88125.0,0.0113548]
[1766190026474,0.02732744,88139.0,88128.0,0.0113543]
[1766190026788,0.02732744,88139.0,88124.0,1.9e-07]
[1766190026789,1.9e-07,88141.0,88124.0,0.01135509]
[1766190028888,1.9e-07,88141.0,88124.0,1.9e-07]
[1766190029087,1.9e-07,88141.0,88125.0,0.00568]
[1766190030175,0.23816311,88140.0,88125.0,0.00568]
[1766190030782,0.23816311,88140.0,88124.0,1.9e-07]
[1766190033292,1.9e-07,88141.0,88125.0,0.0113548]
[1766190033495,1.9e-07,88141.0,88130.0,0.22681011]
[1766190034493,1.9e-07,88141.0,88125.0,0.0113548]
[1766190034792,1.9e-07,88141.0,88130.0,0.22681011]
[1766190037891,0.00568,88143.0,88131.0,0.0113541]
[1766190039285,0.00568,88143.0,88130.0,0.22681011]
[1766190039480,0.00568,88143.0,88128.0,0.00568]
[1766190039790,0.00017005,88144.0,88131.0,0.011354]
[1766190040093,0.00017005,88144.0,88130.0,0.22681011]
[1766190046406,0.00017005,88144.0,88128.0,0.00568]
[1766190046996,0.01152255,88144.0,88128.0,0.00568]
[1766190047502,0.0113528,88141.0,88124.0,1.9e-07]
[1766190047705,0.22681011,88140.0,88125.0,0.00568]
[1766190048806,0.0113531,88139.0,88125.0,0.00568]
[1766190049290,0.0170331,88139.0,88125.0,0.00568]
[1766190054708,0.00568,88139.0,88125.0,0.00568]
[1766190055305,0.00017005,88144.0,88132.0,0.0113539]
[1766190056199,0.00017005,88144.0,88129.0,0.22681011]
[1766190056401,0.00017005,88144.0,88125.0,0.00568]
[1766190057006,0.0113535,88136.0,88124.0,1.9e-07]
[1766190057314,0.00568,88135.0,88124.0,1.9e-07]
[1766190058009,0.23816381,88134.0,88124.0,1.9e-07]
[1766190059507,0.23816381,88134.0,88119.0,1.9e-07]
[1766190059806,0.22681011,88130.0,88119.0,1.9e-07]
[1766190060012,0.23249011,88130.0,88119.0,1.9e-07]
[1766190061514,0.23249011,88130.0,88116.0,0.00017019]
[1766190061515,0.00568,88130.0,88116.0,0.00017019]
[1766190061698,0.00568,88130.0,88120.0,0.22681011]
[1766190063813,0.0113526,88143.0,88120.0,0.22681011]
[1766190064114,0.22681011,88140.0,88120.0,0.22681011]
[1766190064304,0.0113529,88140.0,88120.0,0.22681011]
[1766190064504,0.00568,88139.0,88120.0,0.22681011]
[1766190071608,0.02731828,88138.0,88120.0,0.22681011]
[1766190071918,0.00568,88139.0,88120.0,0.22681011]
[1766190072120,0.02731801,88138.0,88120.0,0.22681011]
[1766190072318,0.00568,88139.0,88120.0,0.22681011]
[1766190072717,0.02731873,88138.0,88120.0,0.22681011]
[1766190073015,0.00568,88139.0,88120.0,0.22681011]
[1766190073222,0.02731835,88138.0,88120.0,0.22681011]
[1766190073421,0.00568,88139.0,88120.0,0.22681011]
[1766190073621,0.0273193,88138.0,88120.0,0.22681011]
[1766190073922,0.00568,88139.0,88120.0,0.22681011]
[1766190074112,0.02731928,88138.0,88120.0,0.22681011]
[1766190074313,0.00568,88139.0,88120.0,0.22681011]
[1766190074514,0.02732092,88138.0,88120.0,0.22681011]
[1766190074817,0.00568,88139.0,88120.0,0.22681011]
[1766190075114,0.0273209,88138.0,88120.0,0.22681011]
[1766190075316,0.00568,88139.0,88119.0,0.0170356]
[1766190075514,0.02732242,88138.0,88119.0,0.0170356]
[1766190075814,0.00568,88139.0,88119.0,0.0170356]
[1766190076024,0.02739148,88138.0,88119.0,0.0170356]
[1766190076216,0.00568,88139.0,88119.0,0.0170356]
[1766190076418,0.02739251,88138.0,88119.0,0.0170356]
[1766190076722,0.00568,88139.0,88119.0,0.0170356]
[1766190076918,0.02739411,88138.0,88119.0,0.0170356]
[1766190077119,0.00568,88139.0,88119.0,0.0170356]
[1766190077324,0.02739411,88138.0,88119.0,0.0170356]
[1766190077522,0.02739411,88137.0,88119.0,0.0170356]
[1766190077724,0.00568,88139.0,88119.0,0.0170356]
[1766190077922,0.01152255,88144.0,88122.0,0.0113552]
[1766190078118,0.0113477,88181.0,88119.0,0.00568]
[1766190078119,0.0036,88143.0,88129.0,0.22681011]
[1766190078322,1.44784,88158.0,88129.0,0.22681011]
[1766190078323,0.22681011,88150.0,88129.0,0.22681011]
[1766190078523,0.22681011,88150.0,88140.0,0.22681011]
[1766190078524,0.00568,88150.0,88140.0,0.22681011]
[1766190078824,0.0113507,88158.0,88137.0,0.00568]
[1766190078825,0.00568,88152.0,88137.0,0.00568]
[1766190079921,0.00568,88152.0,88140.0,0.22681011]
[1766190080126,0.00568,88156.0,88140.0,0.22681011]
[1766190080920,0.23249011,88160.0,88140.0,0.22681011]
[1766190081729,0.0113505,88159.0,88140.0,0.22681011]
[1766190082326,0.23249011,88160.0,88140.0,0.22681011]
[1766190083428,0.23241276,88160.0,88140.0,0.22673276]
[1766190083618,0.23241276,88160.0,88141.0,0.00568]
[1766190084933,0.00568,88160.0,88141.0,0.00568]
[1766190085134,0.23241276,88160.0,88141.0,0.00568]
[1766190085434,0.00568,88159.0,88141.0,0.00568]
[1766190085633,0.00568,88158.0,88141.0,0.00568]
[1766190085933,0.00568,88158.0,88141.0,0.0170328]
[1766190086935,0.00568,88157.0,88141.0,0.0170328]
[1766190087631,0.06101011,88180.0,88144.0,0.0113524]
[1766190087632,0.0113493,88169.0,88144.0,0.0113524]
[1766190087836,0.0113493,88169.0,88141.0,0.00568]
[1766190087837,0.00356,88168.0,88150.0,0.22673276]
[1766190088138,0.0113495,88167.0,88150.0,0.22673276]
[1766190088834,0.00356,88168.0,88150.0,0.22673276]
[1766190090233,0.0149094,88168.0,88150.0,0.22673276]
[1766190091338,0.0149094,88168.0,88149.0,0.00568]
[1766190093331,0.00356,88168.0,88149.0,0.00568]
[1766190096843,0.0113492,88169.0,88150.0,0.0113516]
[1766190097050,0.00568,88167.0,88150.0,0.0113516]
[1766190100346,0.00428,88173.0,88153.0,0.0113512]
[1766190100549,0.00488,88176.0,88155.0,0.011351]
[1766190100746,0.0113485,88175.0,88156.0,0.00568]
[1766190105853,0.00488,88176.0,88157.0,0.0113507]
[1766190108161,0.0162283,88176.0,88157.0,0.0113507]
[1766190108862,0.00488,88176.0,88157.0,0.0113507]
[1766190110364,0.00488,88176.0,88156.0,0.00568]
[1766190111151,0.0113489,88172.0,88156.0,0.00568]
[1766190111561,0.22668885,88180.0,88156.0,0.00568]
[1766190111562,0.0113462,88193.0,88160.0,0.22668885]
[1766190111861,0.0307312,88192.0,88170.0,0.22668885]
[1766190112068,0.00356,88191.0,88172.0,0.00017009]
[1766190112766,0.0149064,88191.0,88172.0,0.00017009]
[1766190113463,0.00356,88191.0,88173.0,0.0113486]
[1766190114671,0.0113444,88207.0,88181.0,0.0113475]
[1766190114865,0.0113446,88205.0,88185.0,0.00017009]
[1766190115062,0.03071242,88204.0,88185.0,0.00017009]
[1766190115369,0.00356,88204.0,88185.0,0.00017009]
[1766190115865,0.22668885,88220.0,88186.0,0.011347]
[1766190115866,0.0113441,88209.0,88186.0,0.011347]
[1766190116071,1.44728,88226.0,88190.0,0.22668885]
[1766190116265,0.0113432,88216.0,88199.0,0.00017009]
[1766190117070,0.0113436,88213.0,88199.0,0.00017009]
[1766190117266,0.0113445,88206.0,88199.0,9e-08]
[1766190117461,0.22668885,88210.0,88171.0,0.0113489]
[1766190117663,0.00568,88209.0,88174.0,0.0113484]
[1766190117960,0.0113449,88203.0,88177.0,0.011348]
[1766190118366,0.0113449,88203.0,88172.0,0.00568]
[1766190118367,0.0113458,88196.0,88181.0,0.00017009]
[1766190118571,0.0113458,88196.0,88181.0,0.00485009]
[1766190118871,0.0113456,88197.0,88181.0,0.00485009]
[1766190119874,0.0113434,88214.0,88187.0,0.23803565]
[1766190120074,0.0113428,88219.0,88187.0,0.22668885]
[1766190120967,0.0113428,88219.0,88194.0,0.00017009]
[1766190121272,0.0113428,88219.0,88195.0,0.00568]
[1766190121572,0.0113428,88219.0,88196.0,0.0113457]
[1766190121775,0.0113428,88219.0,88195.0,0.00568]
[1766190121976,0.0113441,88209.0,88194.0,0.00017009]
[1766190122164,0.00568,88209.0,88194.0,9e-08]
[1766190124172,0.0113452,88200.0,88194.0,9e-08]
[1766190124979,0.0113463,88192.0,88167.0,0.0113494]
[1766190125166,0.0113463,88192.0,88168.0,0.00356]
[1766190125369,0.0113467,88189.0,88162.0,1.45831]
[1766190125571,0.0113464,88191.0,88169.0,0.00568]
[1766190126079,0.00017009,88189.0,88171.0,0.00017009]
[1766190127979,0.0113475,88183.0,88171.0,0.00017009]
[1766190129075,0.0113472,88185.0,88171.0,0.00017009]
[1766190130270,0.00232,88188.0,88171.0,0.00017009]
[1766190130780,0.011347,88187.0,88171.0,0.00017009]
[1766190132483,0.0113473,88184.0,88171.0,0.00017009]
[1766190134485,0.0136668,88188.0,88171.0,0.00017009]
[1766190134679,0.00232,88188.0,88171.0,0.00017009]
[1766190139280,0.0136668,88188.0,88171.0,0.00017009]
[1766190139693,0.00232,88188.0,88171.0,0.00017009]
[1766190139992,0.00232,88188.0,88171.0,0.01151899]
[1766190146280,0.00232,88188.0,88174.0,0.0113485]
[1766190147786,0.00017009,88189.0,88171.0,0.00017009]
[1766190147982,0.00017009,88189.0,88175.0,0.0113484]
[1766190148188,0.00017009,88189.0,88171.0,0.01151889]
[1766190150098,0.00017009,88189.0,88174.0,0.0113485]
[1766190151387,0.00017009,88189.0,88171.0,0.00017009]
[1766190153491,0.0113471,88185.0,88171.0,0.00017009]
[1766190155710,0.00017009,88189.0,88171.0,0.00017009]
[1766190156709,0.00017009,88189.0,88172.0,0.0113487]
[1766190157411,0.00017009,88189.0,88179.0,0.226546]
[1766190157606,9e-08,88189.0,88180.0,0.0113478]
[1766190159001,0.06101011,88213.0,88181.0,0.00568]
[1766190159212,0.03267409,88212.0,88192.0,0.0113461]
[1766190159404,0.02699409,88211.0,88192.0,0.0113461]
[1766190159604,0.02699409,88210.0,88200.0,0.226546]
[1766190159807,0.00568,88212.0,88200.0,0.226546]
[1766190161917,0.00568,88212.0,88197.0,0.00017009]
[1766190167519,0.0170237,88212.0,88197.0,0.00017009]
[1766190167913,0.0113445,88206.0,88197.0,9e-08]
[1766190168113,0.0113445,88206.0,88190.0,0.229346]
[1766190169710,0.0113445,88206.0,88190.0,0.0028]
[1766190169914,0.00017009,88207.0,88190.0,0.0028]
[1766190170726,0.00017009,88207.0,88189.0,9e-08]
[1766190171214,0.0113449,88203.0,88189.0,9e-08]
[1766190180535,0.0170249,88203.0,88189.0,9e-08]
[1766190180924,0.00568,88203.0,88189.0,9e-08]
[1766190183826,0.011345,88202.0,88189.0,9e-08]
[1766190187331,0.00568,88203.0,88189.0,9e-08]
[1766190189443,0.0170248,88203.0,88189.0,9e-08]
[1766190190141,0.0113452,88200.0,88189.0,9e-08]
[1766190194447,0.00568,88203.0,88189.0,9e-08]
[1766190194640,0.011345,88202.0,88189.0,9e-08]
[1766190194842,0.011345,88202.0,88186.0,9e-08]
[1766190201957,0.0113453,88199.0,88186.0,9e-08]
[1766190202152,0.0170249,88203.0,88186.0,9e-08]
[1766190204759,0.00568,88203.0,88187.0,0.0113468]
[1766190205161,0.01151449,88207.0,88187.0,0.0113468]
[1766190205350,0.03266912,88206.0,88187.0,0.0113468]
[1766190205556,0.00017009,88207.0,88187.0,0.0113468]
[1766190205758,0.0326684,88206.0,88186.0,9e-08]
[1766190205954,0.02698841,88205.0,88186.0,9e-08]
[1766190206157,0.0113449,88203.0,88186.0,9e-08]
[1766190206356,0.0113452,88200.0,88186.0,9e-08]
[1766190207060,0.0113456,88197.0,88186.0,9e-08]
[1766190207256,0.0113456,88197.0,88185.0,1.8e-07]
[1766190207453,0.0113456,88197.0,88182.0,1.8e-07]
[1766190210652,0.0113456,88197.0,88183.0,0.00568]
[1766190213468,0.00568,88199.0,88183.0,0.00568]
[1766190217871,0.0113455,88198.0,88183.0,0.00564]
[1766190219168,0.0113459,88195.0,88181.0,2.7e-07]
[1766190219954,0.0113459,88195.0,88175.0,0.0113483]
[1766190220158,0.0113459,88195.0,88176.0,0.00568]
[1766190220366,0.0113459,88195.0,88176.0,0.00585009]
[1766190227261,0.0170254,88199.0,88176.0,0.00585009]
[1766190229674,0.0113458,88196.0,88176.0,0.00585009]
[1766190232670,0.00568,88199.0,88178.0,0.011348]
[1766190233879,0.00568,88199.0,88181.0,0.0113476]
[1766190234080,0.00568,88199.0,88183.0,0.0113473]
[1766190236069,0.00568,88199.0,88186.0,0.0113469]
[1766190236581,0.00564,88199.0,88186.0,0.0113469]
[1766190241468,0.00564,88199.0,88182.0,0.00536]
[1766190241778,0.00017009,88207.0,88189.0,0.22653158]
[1766190241979,0.00017009,88207.0,88189.0,0.23221158]
[1766190242485,0.00017009,88207.0,88193.0,0.011346]
[1766190242886,0.00017009,88207.0,88192.0,0.0113462]
[1766190245484,0.00017009,88207.0,88189.0,0.23221158]
[1766190246182,0.00017009,88207.0,88189.0,0.00568]
[1766190246990,0.00017009,88207.0,88190.0,0.0113465]
[1766190247792,0.00017009,88207.0,88190.0,0.23787808]
[1766190249499,0.00017009,88207.0,88193.0,0.011346]
[1766190249698,0.00017009,88207.0,88190.0,0.22653158]
[1766190250089,0.00017009,88207.0,88191.0,0.0113463]
[1766190250290,0.00017009,88207.0,88194.0,0.0113459]
[1766190250598,0.00017009,88207.0,88195.0,0.00568]
[1766190253301,0.00017009,88207.0,88196.0,0.0113457]
[1766190256396,0.00017009,88207.0,88195.0,0.00568]
[1766190259202,0.00017009,88207.0,88195.0,0.0170258]
[1766190262591,0.00156,88214.0,88195.0,0.0170258]
[1766190262801,0.03863099,88213.0,88195.0,0.00568]
[1766190263003,0.02728739,88212.0,88195.0,0.00568]
[1766190263701,0.02745748,88212.0,88195.0,0.00585009]
[1766190264011,0.02728739,88211.0,88196.0,0.0113456]
[1766190267710,0.03296739,88211.0,88196.0,0.0113456]
[1766190267906,0.02728739,88210.0,88196.0,0.0113456]
[1766190269910,0.02728739,88210.0,88195.0,0.00585009]
[1766190270302,0.02728739,88210.0,88196.0,0.0113456]
[1766190270497,0.02728739,88210.0,88195.0,0.00585009]
[1766190270913,0.02728739,88210.0,88196.0,0.0113457]
[1766190275402,0.02728739,88210.0,88195.0,0.00585009]
[1766190275606,9e-08,88212.0,88200.0,0.22645565]
[1766190275805,0.00568,88222.0,88202.0,0.22645565]
[1766190276005,0.00568,88222.0,88204.0,0.0113446]
[1766190276204,0.00568,88222.0,88210.0,0.22645565]
[1766190279404,0.00017009,88225.0,88210.0,0.22645565]
[1766190280116,0.00017009,88225.0,88211.0,0.0113437]
[1766190280308,0.00017009,88225.0,88212.0,0.00568]
[1766190280610,0.0113409,88234.0,88215.0,0.22645565]
[1766190280809,0.0113409,88234.0,88213.0,0.0113435]
[1766190281010,0.00568,88233.0,88213.0,0.0113435]
[1766190281316,0.00568,88232.0,88220.0,0.22645565]
[1766190283207,0.0113413,88230.0,88220.0,0.22645565]
[1766190284014,0.0113413,88230.0,88217.0,0.00017009]
[1766190285815,0.00568,88229.0,88217.0,0.00017009]
[1766190287517,0.00568,88229.0,88219.0,0.22645565]
[1766190287815,0.0113409,88234.0,88219.0,0.22645565]
[1766190288016,0.00568,88233.0,88220.0,0.22633795]
[1766190288717,0.00568,88232.0,88220.0,0.22633795]